Cogmind - Beta 11.1 @@@ ROGUE MODE // 2022.12.12 @ 19:38:34 Player: sasha Result: Destroyed by D-53 Grenadier with Mini Grenade Launcher Performance ------------- Evolutions (0) 0 Regions Visited (2) 400 Robots Destroyed (20) 100 Value Destroyed (383) 383 Prototype IDs (0) 0 Alien Tech Used (0) 0 Bonus (67) 67 TOTAL SCORE: 950 Bonus ------- Follower Combat Kills 67 Cogmind --------- Core Integrity 0/250 Matter 264/300 Energy 94/100 System Corruption 1% Temperature Cool (0) Movement Treading (320) Ox2 Location -10/Mines Parts ------- > --- POWER (1) -------- (None) > --- PROPULSION (2) --- Light Treads > --- UTILITY (2) ------ High-capacity Storage Unit Hardened Light Armor Plating > --- WEAPON (2) ------- (None) > --- INVENTORY (20) --- Light Ion Engine Medium Matter Pod (100) Medium Matter Pod (8) Visual Processing Unit Hardened Light Armor Plating Hardened Light Armor Plating Hardened Light Armor Plating Hardened Light Armor Plating Hardened Light Armor Plating Hardened Light Armor Plating Hardened Light Armor Plating Particle Gun Improved Light Cannon Improved Light Cannon Improved Light Cannon Grenade Launcher Grenade Launcher Peak State ------------ > --- POWER ------------ Ion Engine > --- PROPULSION ------- Light Treads Light Treads > --- UTILITY ---------- Medium Storage Unit High-capacity Storage Unit > --- WEAPON ----------- Particle Gun Assault Rifle > --- INVENTORY -------- Light Ion Engine Light Treads Medium Matter Pod Visual Processing Unit Hardened Light Armor Plating Hardened Light Armor Plating Hardened Light Armor Plating Hardened Light Armor Plating Hardened Light Armor Plating Hardened Light Armor Plating Hardened Light Armor Plating Hardened Light Armor Plating Improved Light Cannon Improved Light Cannon Improved Light Cannon Grenade Launcher Grenade Launcher Grenade Launcher [Rating: 11] Favorites ----------- Power Ion Engine Engine Ion Engine Propulsion Light Treads Treads Light Treads Leg Aluminum Leg Utility Medium Storage Unit Storage Medium Storage Unit Processor Targeting Computer Protection Hardened Light Armor Plating Weapon Light Assault Rifle Energy Gun Particle Gun Ballistic Gun Light Assault Rifle Launcher Grenade Launcher Build | -11 -10 -10 ------- Run | Scr Mat Min Slots Evolved . | . . . Power . | . . . Propulsion . | . . . Utility . | . . . Weapon . | . . . Parts Attached 19 | 7 9 3 Power 2 | 2 . . Engine 2 | 2 . . Core . | . . . Reactor . | . . . Propulsion 6 | 2 3 1 Treads 5 | 2 2 1 Leg 1 | . 1 . Wheel . | . . . Hover . | . . . Flight . | . . . Utility 5 | 1 3 1 Device . | . . . Storage 3 | 1 2 . Processor 1 | . 1 . Hackware . | . . . Protection 1 | . . 1 Artifact . | . . . Weapon 6 | 2 3 1 Energy Gun 1 | . 1 . Energy Cannon . | . . . Ballistic Gun 3 | 2 1 . Ballistic Cannon . | . . . Launcher 2 | . 1 1 Special Weapon . | . . . Impact Weapon . | . . . Slashing Weapon . | . . . Piercing Weapon . | . . . Special Melee Weapon . | . . . Unidentified Prototypes . | . . . Parts Lost 10 | . 5 5 Power 1 | . . 1 Propulsion 4 | . 2 2 Utility 1 | . 1 . Weapon 4 | . 2 2 Highest Loss Streak 5 | . 3 5 To Critical Strikes . | . . . Average Slot Usage (%) 97 | . 98 96 Engine 13 | . 14 12 Treads 27 | . 27 27 Storage 25 | . 24 27 Processor 1 | . 2 . Energy Gun 5 | . 3 12 Ballistic Gun 15 | . 16 13 Launcher 6 | . 7 . Naked Turns . | . . . Heaviest Build 60 | 12 60 60 Greatest Support 40 | 40 40 40 Greatest Overweight (x) 2 | 2 2 2 Average Overweight (x) . | . . . Largest Inventory Capacity 20 | 8 20 20 Average Capacity 17 | 7 17 20 Most Carried 19 | 6 19 19 Average Carried 13 | 3 12 18 Final Capacity 20 | 8 20 20 Final Carried 19 | 4 19 17 Class Distribution -------------------- 100% | Mutant Dominant Class ---------------- Mutant | -10/Materials Mutant | -10/Mines Resources | -11 -10 -10 ----------- Run | Scr Mat Min Matter Collected 647 | 186 341 120 Remotely . | . . . Salvage Created 614 | . 595 19 Parts 44 | . 43 1 Haulers Intercepted 1 | . 1 . Recyclers Shooed 2 | . 2 . Parts Field Recycled . | . . . Retrieved Matter . | . . . Parts Self-Destructed . | . . . Prevented . | . . . Kills | -11 -10 -10 ------- Run | Scr Mat Min Combat Hostiles Destroyed 14 | . 13 1 Guns 12 | . 11 1 AOE 2 | . 2 . Classes Destroyed 6 | . 6 . Worker 2 | . 2 . Hauler 1 | . 1 . Recycler 1 | . 1 . Watcher 2 | . 2 . Swarmer 7 | . 6 1 Grunt 7 | . 7 . Best Kill Streak 6 | . 6 1 Combat Bots Only 4 | . 4 1 Max Kills in Single Turn 2 | . 2 1 Gunslinging . | . . . Exploded 2 | . 2 . Melee . | . . . Uniques/NPCs Destroyed . | . . . Combat | -11 -10 -10 -------- Run | Scr Mat Min Damage Taken 1514 | . 792 722 Core 265 | . 55 210 Absorbed by Shields . | . . . Core Remaining (%) 100 | 100 . . Volleys Fired 90 | . 85 5 Largest 2 | . 2 2 Hottest 85 | . 40 85 Shots Fired 108 | . 98 10 Gun 103 | . 95 8 Cannon . | . . . Launcher 5 | . 3 2 Special . | . . . Kinetic 100 | . 95 5 Thermal 3 | . . 3 Explosive 5 | . 3 2 Electromagnetic . | . . . Robot Hit Streak 11 | . 11 5 Robot Miss Streak 6 | . 3 6 Penetration Max . | . . . Secondary Targets 3 | . 3 . Max Gunslinging Chain 1 | . 1 . Shots Hit Robots 70 | . 65 5 Core Hits 39 | . 35 4 Critical Kills 1 | . 1 . Critical Parts Destroyed 1 | . 1 . Critical Strikes 2 | . 2 . Destroy 2 | . 2 . Melee Attacks . | . . . Impact . | . . . Slashing . | . . . Piercing . | . . . Sneak Attacks . | . . . Combat Hostiles . | . . . Follow-up Attacks . | . . . Damage Inflicted 1138 | . 1049 89 Guns 694 | . 654 40 Cannons . | . . . Explosions 440 | . 391 49 Melee . | . . . Ramming 4 | . 4 . Kinetic 679 | . 654 25 Thermal 15 | . . 15 Explosive 367 | . 318 49 Electromagnetic 73 | . 73 . Impact . | . . . Slashing . | . . . Piercing . | . . . Highest Corruption 1 | . 1 1 Average Corruption 1 | . 1 1 Corruption Purged . | . . . Corruption Blocked . | . . . Effects 2 | . . 2 Message Errors 1 | . . 1 Matter Fused 1 | . . 1 Overload Shots . | . . . Overflow Damage 28 | . 28 . Projectiles . | . . . Explosions 28 | . 28 . Melee . | . . . Knockbacks . | . . . Impact . | . . . Kinetic . | . . . Secondary . | . . . Self-Inflicted Damage 34 | . 34 . Shots 2 | . 2 . Rammed 1 | . 1 . Targets Rammed 1 | . 1 . Kicked . | . . . Crushed . | . . . Highest Temperature 48 | . 12 48 Average Temperature 11 | . 7 21 Received Heat Transfer 333 | . 333 . Siege Activations . | . . . Robots Corrupted . | . . . Combat Hostiles . | . . . Parts Fried . | . . . Impact Corruptions . | . . . Robots Melted . | . . . Combat Hostiles . | . . . Parts Melted 1 | . . 1 Heat Transferred 37 | . . 37 Parts Sabotaged . | . . . Parts Stolen . | . . . Parts Stripped . | . . . Power Chain Reactions . | . . . Missiles Intercepted . | . . . Alert | -11 -10 -10 ------- Run | Scr Mat Min Peak Influence 200 | . 200 149 Initial 42 | . . 42 Average 79 | . 80 103 Maximum Alert Level 1 | . 1 . Low Security (%) 99 | 100 99 100 Level 1 . | . . . Level 2 . | . . . Level 3 . | . . . Level 4 . | . . . Level 5 . | . . . High Security . | . . . Max Security . | . . . Squads Dispatched 3 | . 3 . Investigation 1 | . 1 . Extermination . | . . . Reinforcement 2 | . 2 . Assault . | . . . Garrison . | . . . Intercept . | . . . Searches Triggered . | . . . Construction Impeded . | . . . Haulers Reinforced . | . . . Active Scanning Responses . | . . . Cargo Convoy Interrupts . | . . . Stealth | -11 -10 -10 --------- Run | Scr Mat Min Distress Signals . | . . . Communications Jammed . | . . . Distress Signals . | . . . Times Spotted 26 | . 18 8 Peak Tracking Total 4 | . 4 3 Tactical Retreats 2 | . 1 1 Traps | -11 -10 -10 ------- Run | Scr Mat Min Traps Triggered 2 | . 2 . Indirectly . | . . . Trap Hack Attempts . | . . . Triggered . | . . . Disarmed . | . . . Reprogrammed . | . . . Reused . | . . . Traps Extracted . | . . . Installed . | . . . Triggered . | . . . Machines | -11 -10 -10 ---------- Run | Scr Mat Min Machines Disabled 2 | . 2 . Max in Single Turn 1 | . 1 . Machines Sabotaged . | . . . Garrisons Compromised . | . . . Overloaded Fab Kills . | . . . Hacking | -11 -10 -10 --------- Run | Scr Mat Min Machines Accessed 3 | . 3 . Terminals 3 | . 3 . Fabricators . | . . . Repair Stations . | . . . Recycling Units . | . . . Scanalyzers . | . . . Garrison Access . | . . . Total Hacks 8 | . 8 . Successful 3 | . 3 . Failed 5 | . 5 . Catastrophic 1 | . 1 . Database Lockouts . | . . . Manual 6 | . 6 . Terminals 8 | . 8 . Fabricators . | . . . Repair Stations . | . . . Recycling Units . | . . . Scanalyzers . | . . . Garrison Access . | . . . Terminal Hacks 3 | . 3 . Branch Access Points 1 | . 1 . Locate Traps 1 | . 1 . Zone Layout 1 | . 1 . Fabricator Hacks . | . . . Repair Station Hacks . | . . . Recycling Unit Hacks . | . . . Scanalyzer . | . . . Garrison Access Hacks . | . . . Unauthorized Hacks . | . . . Terminals . | . . . Fabricators . | . . . Repair Stations . | . . . Recycling Units . | . . . Scanalyzers . | . . . Garrison Access . | . . . Data Cores Recovered . | . . . Used . | . . . Hacking Detections 2 | . 2 . Full Trace Events 1 | . 1 . Feedback Events . | . . . Feedback Blocked . | . . . Robot Schematics Acquired . | . . . Robots Built . | . . . Authchips . | . . . Time . | . . . Total Robot Build Rating . | . . . Part Schematics Acquired . | . . . Parts Built . | . . . Authchips . | . . . Time . | . . . Total Part Build Rating . | . . . Parts Repaired . | . . . Time . | . . . Parts Recycled . | . . . Recycled Matter . | . . . Retrieved Matter . | . . . Retrieved Components . | . . . Parts Scanalyzed . | . . . Part Schematics Acquired . | . . . Parts Damaged . | . . . Bothacking | -11 -10 -10 ------------ Run | Scr Mat Min Used RIF Installer . | . . . Robots Hacked . | . . . Non-combat . | . . . Combat . | . . . Robot Hacks Applied . | . . . Relay Couplers Released . | . . . Fabnet Peak Effective % . | . . . Robots Rewired . | . . . Allies Hacked . | . . . Hacks Repelled . | . . . Allies | -11 -10 -10 -------- Run | Scr Mat Min Total Allies 3 | . . 3 Largest Group 3 | . . 3 Highest-Rated Group 40 | . . 40 Highest-Rated Ally 16 | . . 16 Total Orders . | . . . Ally Attacks 14 | . . 14 Total Damage 189 | . . 189 Kills 3 | . . 3 Allies Corrupted . | . . . Allies Melted . | . . . Intel | -11 -10 -10 ------- Run | Scr Mat Min Robot Analysis Total . | . . . Derelict Logs Recovered . | . . . Drone Launches . | . . . Drone Recoveries . | . . . Exploration | -11 -10 -10 ------------- Run | Scr Mat Min Turns Passed 1460 | 91 1139 230 Spaces Moved 565 | 63 417 85 Core 24 | 24 . . Treads 541 | 39 417 85 Legs . | . . . Wheels . | . . . Hover . | . . . Flight . | . . . Fastest Speed 50 | 50 160 160 Average Speed 211 | 119 219 239 Slowest Speed 320 | 160 320 320 Overloaded Moves . | . . . Propulsion Burnouts . | . . . Robots Hopped . | . . . Cave-ins Triggered . | . . . Exploration Rate (%) 34 | 4 70 28 Regions Visited 2 Branch Regions 1 Pre-discovered Areas . | . . . Known Exits Taken 1 | . 1 . Unknown Exits Taken 1 | 1 . . Scrap Searched . | . . . Spaces Dug . | . . . Terrain Destroyed 18 | . 15 3 Melee . | . . . Projectile . | . . . AOE 18 | . 15 3 Terrain Rammed . | . . . Walls Destroyed . | . . . Machines Disabled . | . . . Actions | -11 -10 -10 --------- Run | Scr Mat Min Total 740 | 77 559 104 Wait 19 | . 9 10 Move 563 | 62 416 85 Hop . | . . . Pick Up 37 | 8 29 . Fast Attach 3 | 2 1 . Attach 13 | 4 7 2 Detach . | . . . Swap 3 | 1 1 1 Drop 11 | . 10 1 Fire 90 | . 85 5 Melee . | . . . Ram . | . . . Kick . | . . . Crush 1 | . 1 . Escape Stasis . | . . . Rewire . | . . . Trap . | . . . Miscellaneous . | . . . Route ------- -11/Scrapyard -10/Materials -10/Mines History --------- Turn | Location | Event 4 | -11/Scrapyard | Discovered new exit (range 15) 92 | -11/Scrapyard | Entered Materials 315 | -10/Materials | Build established: Mutant 900 | -10/Materials | Lost 3 parts (2n1w) 1004 | -10/Materials | Identified exit to Mines 1231 | -10/Materials | Entered Mines 1241 | -10/Mines | Assisted by bots powering up and referring to "LRC-V3" 1398 | -10/Mines | Assembled infested the area 1450 | -10/Mines | Core integrity fell below 50% 1454 | -10/Mines | Core integrity fell below 20% 1461 | -10/Mines | Destroyed by D-53 Grenadier with Mini Grenade Launcher Last Messages --------------- 01447_ U-05 Engineer builds a Wall. 01447_ Ion Engine destroyed. 01447_ U-05 Engineer lays Concrete. 01447_ K-01 Serf destroyed. 01451_ U-05 Engineer lays Concrete. 01452_ Assault Rifle destroyed. 01453_ Dropped Med. Storage Unit. 01454_ U-05 Engineer lays Concrete. 01454_ Grenade Launcher destroyed. 01455_ The unstable cave ceiling collapses. 01455_ U-05 Engineer lays Concrete. 01456_ K-01 Serf collects debris. 01458_ U-05 Engineer lays Concrete. 01459_ The unstable cave ceiling collapses. 01459_ U-05 Engineer lays Concrete. 01459_ Lgt. Treads destroyed. 01460_ The unstable cave ceiling collapses. 01460_ U-05 Engineer lays Concrete. 01461_ The unstable cave ceiling collapses. 01461_ U-05 Engineer lays Concrete. Map ----- +----------------------------------------------------+ | ??????????????????????????????????????????????? | | ??????????????????????????????????????????????? | | ??????????????????????????????????????????????? | | ??????????????????????????????????????????????? | | ??????????????????????????????????????????????? | | ??????????????????????????????????????????????? | | ??????????????????????????????????????????????? | | ??????????????????????????????????????????????? | | ????????????????????###???????????????????????? | | ??????# ?????????## ???????????????????????? | | ??????# ?????????# ??????????##??????????? | | ?????## ????????# ?????#??? ???????????? | | ????## ????????# ???? #?? ????????????? | | ???## ????????? < ???? ### ?????????????? | | ???# ?????????# ???? ??????????????? | | ???# ?????????? #### ???????????????? | | ???# ?????????# #???????????????? | | ???# ########### a #???????????????? | | ??## ?# # #???????????????? | | ??# #?# # #???????????????? | | ### #### # #???????????????? | | """ u%d % ! #???????????????? | | """ k d = #???????????????? | | ### """" #???????????????? | | ??# " ## #???????????????? | | ?## ##### ## @ ##???????????????? | | ## #???### ### ##???????????????? | | #?????####?## ##???????????????? | | ## ##???????????## # #????????????????? | | ?## # #?????????????##### ##????????????????? | | ??#### #??????????????????##?????????????????? | | ?????# #?????????????????????????????????????? | | ?????# #?????????????????????????????????????? | | ?????# #?????????????????????????????????????? | | ?????# ?????????????????????????????????????? | | ?????####?????????????????????????????????????? | | ??????????????????????????????????????????????? | | ??????????????????????????????????????????????? | | ??????????????????????????????????????????????? | | ??????????????????????????????????????????????? | | | | | | | | | | | | | | | | | | | | | +----------------------------------------------------+ Best States ------------- Heat Dissipation 25 Energy Generation 10 Energy Capacity 250 Matter Stores 300 Matter Capacity 300 Sight Range 16 Terrain Scan Density 10 Armor Coverage 150 Evasion (%) 50 Targeting Accuracy 5 Recoil Reduction 2 Item Schematics ----------------- None Robot Schematics ------------------ None Fabricated ------------ Nothing Alien Tech Used ----------------- None Achievements -------------- None Challenges ------------ None Game ------ Seed LaserCargoSystem Manual? 0 Play Time 00:12:07 Cumulative 38.0 hours Start 2022.12.12 @ 19:28:25 End 2022.12.12 @ 19:38:34 Sessions 1 Manual Loads 0 Difficulty Rogue Special Mode None Game No. 49 Rogue 49 Adventurer 0 Explorer 0 Win Type - Total 0 Types 0/0/0/0/0/0/0/0/0 Lore% 18 Gallery% 34 Achievement% 30 Wizard Run 0 Options --------- ASCII 0 Keyboard 0 Movement Mouse Keybinds 0 Fullscreen 2 Font 24/Smallcaps Map View 76x50 Tactical HUD 1 Map Filters NONE Filters NONE Steam 1 RUN: a336d976-1442-436c-b669-344b0c3128b7